fUST/lending_fUST_20250516
["ID","MTS","AMOUNT","RATE_DAILY","PERIOD"]
[361209017,1747341044671,-450.0,0.00013972,2]
[361209018,1747341044681,-450.0,0.00013972,2]
[361209019,1747341044690,-715.83,0.00013972,2]
[361209020,1747341044700,-2105.36,0.00013972,2]
[361209021,1747341044710,-450.0,0.00013972,2]
[361209022,1747341044720,-450.0,0.00013972,2]
[361209023,1747341044729,-450.0,0.00013972,2]
[361209024,1747341044739,-450.0,0.00013972,2]
[361209025,1747341044748,-450.0,0.00013972,2]
[361209026,1747341044757,-450.0,0.00013972,2]
[361209027,1747341044766,-350.0,0.00013972,2]
[361209028,1747341044776,-797.61,0.00013972,2]
[361209029,1747341044785,-450.0,0.00013972,2]
[361209030,1747341044795,-450.0,0.00013972,2]
[361209031,1747341044805,-450.0,0.00013972,2]
[361209032,1747341044820,-450.0,0.00013972,2]
[361209033,1747341044828,-450.0,0.00013972,2]
[361209034,1747341044836,-491.79,0.00013972,2]
[361209035,1747341044846,-450.0,0.00013972,2]
[361209036,1747341044858,-523.13,0.00013972,2]
[361209037,1747341044868,-450.0,0.00013972,2]
[361209038,1747341044877,-450.0,0.00013972,2]
[361209039,1747341044888,-450.0,0.00013972,2]
[361209040,1747341044899,-669.27,0.00013972,2]
[361209041,1747341044909,-450.0,0.00013972,2]
[361209042,1747341044919,-450.0,0.00013972,2]
[361209043,1747341044929,-450.0,0.00013972,2]
[361209044,1747341044938,-924.17,0.00013972,2]
[361209045,1747341044947,-750.86,0.00013972,2]
[361209046,1747341044958,-271.17405752,0.00013972,2]
[361209047,1747341044967,-1120.71,0.00013972,2]
[361209048,1747341044976,-450.0,0.00013972,2]
[361209049,1747341044985,-1104.34,0.00013972,2]
[361209050,1747341044995,-450.0,0.00013972,2]
[361209051,1747341045005,-450.0,0.00013972,2]
[361209052,1747341045014,-450.0,0.00013972,2]
[361209053,1747341045023,-450.0,0.00013972,2]
[361209054,1747341045033,-450.0,0.00013972,2]
[361209055,1747341045042,-746.93,0.00013972,2]
[361209056,1747341045051,-450.0,0.00013972,2]
[361209057,1747341045061,-777.83,0.00013972,2]
[361209058,1747341045070,-450.0,0.00013972,2]
[361209059,1747341045079,-459.17,0.00013972,2]
[361209060,1747341045088,-946.65,0.00013972,2]
[361209061,1747341045097,-450.0,0.00013972,2]
[361209062,1747341045106,-450.0,0.00013972,2]
[361209063,1747341045115,-450.0,0.00013972,2]
[361209064,1747341045124,-1668.83,0.00013972,2]
[361209065,1747341045134,-450.0,0.00013972,2]
[361209066,1747341045143,-2352.56,0.00013972,2]
[361209067,1747341045152,-543.41,0.00013972,2]
[361209068,1747341045161,-450.0,0.00013972,2]
[361209069,1747341045171,-450.0,0.00013972,2]
[361209070,1747341045180,-1362.19,0.00013972,2]
[361209071,1747341045189,-450.0,0.00013972,2]
[361209072,1747341045198,-450.0,0.00013972,2]
[361209073,1747341045209,-450.0,0.00013972,2]
[361209074,1747341045218,-557.2,0.00013972,2]
[361209075,1747341045227,-2162.95,0.00013972,2]
[361209076,1747341045236,-450.0,0.00013972,2]
[361209077,1747341045246,-450.0,0.00013972,2]
[361209078,1747341045255,-450.0,0.00013972,2]
[361209079,1747341045265,-450.0,0.00013972,2]
[361209080,1747341045275,-450.0,0.00013972,2]
[361209081,1747341045285,-450.0,0.00013972,2]
[361209082,1747341045294,-450.0,0.00013972,2]
[361209083,1747341045304,-450.0,0.00013972,2]
[361209084,1747341045313,-1381.24,0.00013972,2]
[361209085,1747341045323,-450.0,0.00013972,2]
[361209086,1747341045332,-450.0,0.00013972,2]
[361209087,1747341045342,-845.84,0.00013972,2]
[361209088,1747341045352,-678.55,0.00013972,2]
[361209089,1747341045361,-450.0,0.00013972,2]
[361209090,1747341045371,-450.0,0.00013972,2]
[361209091,1747341045381,-450.0,0.00013972,2]
[361209092,1747341045391,-450.0,0.00013972,2]
[361209093,1747341045400,-450.0,0.00013972,2]
[361209094,1747341045409,-450.0,0.00013972,2]
[361209095,1747341045419,-450.0,0.00013972,2]
[361209096,1747341045429,-450.0,0.00013972,2]
[361209097,1747341045439,-450.0,0.00013972,2]
[361209098,1747341045449,-450.0,0.00013972,2]
[361209099,1747341045460,-450.0,0.00013972,2]
[361209100,1747341045469,-450.0,0.00013972,2]
[361209101,1747341045479,-1310.72,0.00013972,2]
[361209102,1747341045489,-1193.17,0.00013972,2]
[361209103,1747341045498,-450.0,0.00013972,2]
[361209106,1747341045586,-450.0,0.00013972,2]
[361209107,1747341045597,-450.0,0.00013972,2]
[361209109,1747341045607,-450.0,0.00013972,2]
[361209110,1747341045617,-450.0,0.00013972,2]
[361209111,1747341045626,-450.0,0.00013972,2]
[361209112,1747341045636,-973.36,0.00013972,2]
[361209113,1747341045645,-450.0,0.00013972,2]
[361209114,1747341045654,-450.0,0.00013972,2]
[361209115,1747341045663,-918.42,0.00013972,2]
[361209116,1747341045673,-3509.99,0.00013972,2]
[361209117,1747341045682,-502.26,0.00013972,2]
[361209118,1747341045692,-450.0,0.00013972,2]
[361209119,1747341045701,-450.0,0.00013972,2]
[361209120,1747341045712,-4058.1,0.00013972,2]
[361209121,1747341045722,-450.0,0.00013972,2]
[361209122,1747341045731,-450.0,0.00013972,2]
[361209123,1747341045740,-450.0,0.00013972,2]
[361209124,1747341045749,-571.62,0.00013972,2]
[361209125,1747341045759,-450.0,0.00013972,2]
[361209126,1747341045768,-450.0,0.00013972,2]
[361209127,1747341045778,-450.0,0.00013972,2]
[361209128,1747341045787,-450.0,0.00013972,2]
[361209129,1747341045796,-450.0,0.00013972,2]
[361209130,1747341045808,-300.0,0.00013972,2]
[361209131,1747341045817,-500.0,0.00013973,2]
[361209132,1747341045827,-500.0,0.00013973,2]
[361209133,1747341045836,-500.0,0.00013973,2]
[361209134,1747341045846,-500.0,0.00013973,2]
[361209135,1747341045855,-500.0,0.00013973,2]
[361209136,1747341045864,-11006.17954037,0.00013979,2]
[361209137,1747341045873,-204678.25200571,0.00014,5]
[361209142,1747341046067,-314.82089208,0.00014,5]
[361209146,1747341046742,-5000.0,0.00013557,2]
[361209147,1747341046751,-181.08340254,0.00013597,2]
[361209148,1747341046760,-450.0,0.00013698,2]
[361209149,1747341046769,-450.0,0.00013698,2]
[361209150,1747341046779,-450.0,0.00013698,2]
[361209151,1747341046789,-450.0,0.00013835,2]
[361209152,1747341046798,-450.0,0.00013835,2]
[361209153,1747341046810,-450.0,0.00013835,2]
[361209154,1747341046819,-160.0,0.00013891,2]
[361209155,1747341046829,-436.88235868,0.00013972,2]
[361209156,1747341046838,-300.0,0.00013972,2]
[361209157,1747341046933,-216.06666537,0.00013972,2]
[361209158,1747341046942,-5337.37177344,0.00014,5]
[361209159,1747341046954,-1189.11857082,0.00014,5]
[361209160,1747341046972,-300.0,0.00013698,2]
[361209161,1747341046981,-401.16,0.00014,5]
[361209162,1747341047203,-450.0,0.00013698,2]
[361209163,1747341047214,-450.0,0.00013698,2]
[361209164,1747341047223,-450.0,0.00013698,2]
[361209165,1747341047233,-350.0,0.00013835,2]
[361209166,1747341047244,-166.2977369,0.00013835,2]
[361209167,1747341047256,-183.7022631,0.00013835,2]
[361209168,1747341047266,-350.0,0.00013835,2]
[361209169,1747341047275,-1297.46072737,0.00014,5]
[361209170,1747341047286,-2416.97617946,0.00014,5]
[361209171,1747341047423,-0.00384973,0.00014,5]
[361209172,1747341047841,-450.0,0.00013698,2]
[361209173,1747341047851,-450.0,0.00013698,2]
[361209174,1747341047860,-450.0,0.00013698,2]
[361209175,1747341047869,-99.3764315,0.00013835,2]
[361209176,1747341047880,-489.4835685,0.00013835,2]
[361209177,1747341047890,-350.0,0.00013835,2]
[361209178,1747341047900,-450.0,0.00013835,2]
[361209179,1747341047909,-572.76,0.00013972,2]
[361209180,1747341047919,-1796.44180326,0.00014,5]
[361209181,1747341047931,-12611.3697776,0.00014,5]
[361209182,1747341047942,-2199.99646509,0.00014,5]
[361209183,1747341047953,-6190.62538157,0.00014,5]
[361209184,1747341048008,-762137.83743293,0.00014,5]
[361209185,1747341048019,-6457.33182499,0.00014,5]
[361209186,1747341048030,-2711.19064659,0.00014,5]
[361209187,1747341048060,-103.94511082,0.00014,5]
[361209188,1747341050827,1227.10421271,0.00013421,2]
[361209189,1747341050849,3772.89578729,0.00013421,2]
[361209190,1747341331305,2391.406231,0.00027546,30]
[361209212,1747341958148,-650.54179144,0.00013026,14]
[361209217,1747342051089,-5000.0,0.00013462,2]
[361209218,1747342051111,-300.0,0.00013696,2]
[361209219,1747342051131,-300.0,0.00013696,2]
[361209220,1747342051154,-500.0,0.00013697,2]
[361209221,1747342051175,-500.0,0.00013697,2]
[361209222,1747342051197,-500.0,0.00013697,2]
[361209223,1747342051228,-500.0,0.00013697,2]
[361209224,1747342051250,-500.0,0.00013697,2]
[361209225,1747342051271,-500.0,0.00013697,2]
[361209226,1747342051293,-500.0,0.00013697,2]
[361209227,1747342051316,-500.0,0.00013697,2]
[361209228,1747342051336,-244.76138099,0.00013697,2]
[361209229,1747342051357,-169.26729084,0.00013697,2]
[361209230,1747342051378,-496.08637982,0.00013697,2]
[361209231,1747342051398,-500.0,0.00013697,2]
[361209232,1747342051418,-500.0,0.00013697,2]
[361209233,1747342051439,-500.0,0.00013697,2]
[361209234,1747342051460,-500.0,0.00013697,2]
[361209235,1747342051480,-500.0,0.00013697,2]
[361209236,1747342051502,-641.35107261,0.00013697,2]
[361209237,1747342051523,-641.35107261,0.00013697,2]
[361209238,1747342051542,-325.519,0.00013697,2]
[361209239,1747342051563,-641.35107261,0.00013697,2]
[361209240,1747342051584,-500.0,0.00013697,2]
[361209241,1747342051604,-350.68099456,0.00013697,2]
[361209242,1747342051625,-498.37124712,0.00013697,2]
[361209243,1747342051645,-500.0,0.00013697,2]
[361209244,1747342051667,-641.3510726,0.00013697,2]
[361209245,1747342051826,-538.84334572,0.00013698,2]
[361209246,1747342051848,-450.0,0.00013698,2]
[361209247,1747342051870,-156.33569619,0.00013698,2]
[361209298,1747342232159,-5000.0,0.0001356,2]
[361209300,1747342232169,-1740.0000008,0.00013697,2]
[361209302,1747342232178,-450.0,0.00013698,2]
[361209304,1747342232188,-450.0,0.00013698,2]
[361209306,1747342232197,-400.0,0.00013698,2]
[361209308,1747342232207,-450.0,0.00013698,2]
[361209310,1747342232221,-450.0,0.00013698,2]
[361209314,1747342232232,-450.0,0.00013698,2]
[361209316,1747342232243,-450.0,0.00013698,2]
[361209318,1747342232252,-450.0,0.00013698,2]
[361209320,1747342232263,-450.0,0.00013698,2]
[361209322,1747342232273,-450.0,0.00013698,2]
[361209324,1747342232283,-450.0,0.00013698,2]
[361209326,1747342232292,-450.0,0.00013698,2]
[361209327,1747342232302,-450.0,0.00013698,2]
[361209330,1747342232311,-400.0,0.00013698,2]
[361209331,1747342232321,-450.0,0.00013698,2]
[361209332,1747342232330,-536.44766615,0.00013698,2]
[361209333,1747342232340,-450.0,0.00013698,2]
[361209334,1747342232350,-400.0,0.00013698,2]
[361209335,1747342232360,-450.0,0.00013698,2]
[361209336,1747342232371,-450.0,0.00013698,2]
[361209337,1747342232381,-450.0,0.00013698,2]
[361209338,1747342232391,-450.0,0.00013698,2]
[361209340,1747342232400,-450.0,0.00013698,2]
[361209341,1747342232410,-450.0,0.00013698,2]
[361209342,1747342232419,-450.0,0.00013698,2]
[361209343,1747342232429,-450.0,0.00013698,2]
[361209344,1747342232438,-450.0,0.00013698,2]
[361209345,1747342232448,-450.0,0.00013698,2]
[361209346,1747342232457,-450.0,0.00013698,2]
[361209347,1747342232467,-450.0,0.00013698,2]
[361209348,1747342232477,-450.0,0.00013698,2]
[361209349,1747342232487,-450.0,0.00013698,2]
[361209350,1747342232496,-450.0,0.00013698,2]
[361209351,1747342232507,-450.0,0.00013698,2]
[361209352,1747342232517,-450.0,0.00013698,2]
[361209353,1747342232526,-197.43992307,0.00013698,2]
[361209388,1747342238072,-252.56007693,0.00013698,2]
[361209390,1747342238082,-450.0,0.00013698,2]
[361209392,1747342238091,-450.0,0.00013698,2]
[361209394,1747342238100,-450.0,0.00013698,2]
[361209395,1747342238109,-450.0,0.00013698,2]
[361209398,1747342238119,-450.0,0.00013698,2]
[361209399,1747342238129,-450.0,0.00013698,2]
[361209401,1747342238139,-450.0,0.00013698,2]
[361209403,1747342238147,-164.76,0.00013698,2]
[361209405,1747342238156,-450.0,0.00013698,2]
[361209407,1747342238165,-450.0,0.00013698,2]
[361209409,1747342238175,-450.0,0.00013698,2]
[361209411,1747342238184,-450.0,0.00013698,2]
[361209413,1747342238193,-450.0,0.00013698,2]
[361209415,1747342238203,-450.0,0.00013698,2]
[361209417,1747342238212,-446.82073854,0.00013698,2]
[361209420,1747342238225,-300.0,0.00013698,2]
[361209421,1747342238235,-450.0,0.00013698,2]
[361209424,1747342238244,-450.0,0.00013698,2]
[361209426,1747342238253,-400.0,0.00013698,2]
[361209427,1747342238263,-250.0,0.00013698,2]
[361209430,1747342238272,-250.0,0.00013698,2]
[361209431,1747342238281,-400.0,0.00013698,2]
[361209434,1747342238292,-450.0,0.00013698,2]
[361209435,1747342238302,-400.0,0.00013698,2]
[361209438,1747342238311,-450.0,0.00013698,2]
[361209440,1747342238320,-450.0,0.00013698,2]
[361209441,1747342238329,-450.0,0.00013698,2]
[361209443,1747342238338,-450.0,0.00013698,2]
[361209445,1747342238347,-450.0,0.00013698,2]
[361209447,1747342238357,-400.0,0.00013698,2]
[361209450,1747342238366,-450.0,0.00013698,2]
[361209452,1747342238377,-450.0,0.00013698,2]
[361209454,1747342238387,-450.0,0.00013698,2]
[361209456,1747342238396,-450.0,0.00013698,2]
[361209458,1747342238405,-450.0,0.00013698,2]
[361209460,1747342238414,-450.0,0.00013698,2]
[361209462,1747342238424,-450.0,0.00013698,2]
[361209464,1747342238433,-450.0,0.00013698,2]
[361209466,1747342238442,-450.0,0.00013698,2]
[361209467,1747342238451,-450.0,0.00013698,2]
[361209469,1747342238461,-450.0,0.00013698,2]
[361209471,1747342238470,-450.0,0.00013698,2]
[361209473,1747342238480,-450.0,0.00013698,2]
[361209475,1747342238489,-370.08217855,0.00013698,2]
[361209477,1747342238498,-450.0,0.00013698,2]
[361209479,1747342238508,-450.0,0.00013698,2]
[361209481,1747342238517,-450.0,0.00013698,2]
[361209483,1747342238527,-450.0,0.00013698,2]
[361209485,1747342238535,-450.0,0.00013698,2]
[361209487,1747342238545,-450.0,0.00013698,2]
[361209489,1747342238554,-450.0,0.00013698,2]
[361209491,1747342238563,-450.0,0.00013698,2]
[361209493,1747342238572,-450.0,0.00013698,2]
[361209495,1747342238581,-450.0,0.00013698,2]
[361209497,1747342238590,-450.0,0.00013698,2]
[361209499,1747342238600,-450.0,0.00013698,2]
[361209501,1747342238609,-450.0,0.00013698,2]
[361209503,1747342238619,-937.56,0.00013698,2]
[361209505,1747342238629,-450.0,0.00013698,2]
[361209507,1747342238638,-450.0,0.00013698,2]
[361209509,1747342238647,-450.0,0.00013698,2]
[361209512,1747342238657,-155.36,0.00013698,2]
[361209514,1747342238666,-450.0,0.00013698,2]
[361209516,1747342238675,-450.0,0.00013698,2]
[361209517,1747342238684,-456.34,0.00013698,2]
[361209533,1747342238824,-450.0,0.00013698,2]
[361209534,1747342238834,-504.02,0.00013698,2]
[361209536,1747342238843,-450.0,0.00013698,2]
[361209537,1747342238853,-450.0,0.00013698,2]
[361209538,1747342238862,-450.0,0.00013698,2]
[361209539,1747342238871,-727.67,0.00013698,2]
[361209540,1747342238880,-450.0,0.00013698,2]
[361209541,1747342238889,-450.0,0.00013698,2]
[361209542,1747342238899,-450.0,0.00013698,2]
[361209543,1747342238908,-450.0,0.00013698,2]
[361209544,1747342238917,-450.0,0.00013698,2]
[361209545,1747342238926,-450.0,0.00013698,2]
[361209546,1747342238935,-475.48,0.00013698,2]
[361209547,1747342238944,-450.0,0.00013698,2]
[361209548,1747342238953,-450.0,0.00013698,2]
[361209549,1747342238963,-450.0,0.00013698,2]
[361209550,1747342238972,-450.0,0.00013698,2]
[361209551,1747342238981,-450.0,0.00013698,2]
[361209552,1747342238990,-450.0,0.00013698,2]
[361209553,1747342238999,-450.0,0.00013698,2]
[361209554,1747342239009,-360.84734638,0.00013698,2]
[361209555,1747342239018,-1281.19,0.00013698,2]
[361209556,1747342239028,-450.0,0.00013698,2]
[361209557,1747342239037,-450.0,0.00013698,2]
[361209558,1747342239046,-450.0,0.00013698,2]
[361209559,1747342239055,-450.0,0.00013698,2]
[361209560,1747342239064,-250.0,0.00013698,2]
[361209561,1747342239073,-540.87,0.00013698,2]
[361209562,1747342239082,-450.0,0.00013698,2]
[361209563,1747342239091,-250.0,0.00013698,2]
[361209564,1747342239100,-450.0,0.00013698,2]
[361209565,1747342239109,-450.0,0.00013698,2]
[361209566,1747342239118,-450.0,0.00013698,2]
[361209567,1747342239127,-450.0,0.00013698,2]
[361209568,1747342239137,-450.0,0.00013698,2]
[361209569,1747342239147,-450.0,0.00013698,2]
[361209570,1747342239156,-450.0,0.00013698,2]
[361209571,1747342239165,-450.0,0.00013698,2]
[361209572,1747342239174,-389.68029825,0.00013698,2]
[361209573,1747342239183,-489.27,0.00013698,2]
[361209574,1747342239193,-450.0,0.00013698,2]
[361209575,1747342239202,-501.5,0.00013698,2]
[361209576,1747342239212,-450.0,0.00013698,2]
[361209577,1747342239225,-450.0,0.00013698,2]
[361209578,1747342239235,-450.0,0.00013698,2]
[361209579,1747342239245,-450.0,0.00013698,2]
[361209580,1747342239255,-450.0,0.00013698,2]
[361209581,1747342239267,-475.36,0.00013698,2]
[361209582,1747342239276,-450.0,0.00013698,2]
[361209583,1747342239286,-400.0,0.00013698,2]
[361209584,1747342239296,-450.0,0.00013698,2]
[361209585,1747342239306,-450.0,0.00013698,2]
[361209586,1747342239315,-450.0,0.00013698,2]
[361209587,1747342239325,-450.0,0.00013698,2]
[361209588,1747342239334,-199.50317111,0.00013698,2]
[361209589,1747342239343,-450.0,0.00013698,2]
[361209590,1747342239353,-450.0,0.00013698,2]
[361209591,1747342239362,-399.04622689,0.00013698,2]
[361209592,1747342239372,-612.93,0.00013698,2]
[361209593,1747342239382,-450.0,0.00013698,2]
[361209594,1747342239391,-450.0,0.00013698,2]
[361209595,1747342239401,-450.0,0.00013698,2]
[361209596,1747342239410,-450.0,0.00013698,2]
[361209597,1747342239419,-450.0,0.00013698,2]
[361209598,1747342239429,-1002.0,0.00013698,2]
[361209599,1747342239439,-450.0,0.00013698,2]
[361209600,1747342239448,-450.0,0.00013698,2]
[361209601,1747342239458,-450.0,0.00013698,2]
[361209602,1747342239468,-450.0,0.00013698,2]
[361209603,1747342239477,-1706.02,0.00013698,2]
[361209604,1747342239487,-922.08,0.00013698,2]
[361209605,1747342239496,-163.34152299,0.00013698,2]
[361209606,1747342239506,-450.0,0.00013698,2]
[361209607,1747342239516,-450.0,0.00013698,2]
[361209608,1747342239525,-450.0,0.00013698,2]
[361209609,1747342239536,-450.0,0.00013698,2]
[361209610,1747342239545,-450.0,0.00013698,2]
[361209611,1747342239555,-1347.1,0.00013698,2]
[361209612,1747342239564,-450.0,0.00013698,2]
[361209613,1747342239574,-450.0,0.00013698,2]
[361209614,1747342239583,-450.0,0.00013698,2]
[361209615,1747342239592,-159.06,0.00013698,2]
[361209616,1747342239602,-450.0,0.00013698,2]
[361209617,1747342239611,-3550.84,0.00013698,2]
[361209618,1747342239621,-450.0,0.00013698,2]
[361209619,1747342239632,-450.0,0.00013698,2]
[361209620,1747342239642,-450.0,0.00013698,2]
[361209621,1747342239651,-450.0,0.00013698,2]
[361209622,1747342239661,-450.0,0.00013698,2]
[361209623,1747342239671,-4376.94,0.00013698,2]
[361209624,1747342239681,-593.87,0.00013698,2]
[361209625,1747342239690,-450.0,0.00013698,2]
[361209626,1747342239700,-450.0,0.00013698,2]
[361209627,1747342239709,-450.0,0.00013698,2]
[361209628,1747342239719,-450.0,0.00013698,2]
[361209629,1747342239728,-1398.42,0.00013698,2]
[361209631,1747342239737,-1403.72,0.00013698,2]
[361209633,1747342239747,-450.0,0.00013698,2]
[361209634,1747342239757,-450.0,0.00013698,2]
[361209635,1747342239767,-450.0,0.00013698,2]
[361209636,1747342239776,-450.0,0.00013698,2]
[361209637,1747342239786,-450.0,0.00013698,2]
[361209638,1747342239795,-450.0,0.00013698,2]
[361209639,1747342239805,-855.46,0.00013698,2]
[361209640,1747342239815,-450.0,0.00013698,2]
[361209641,1747342239824,-450.0,0.00013698,2]
[361209643,1747342239834,-450.0,0.00013698,2]
[361209645,1747342239843,-6824.89,0.00013698,2]
[361209647,1747342239853,-450.0,0.00013698,2]
[361209649,1747342239862,-450.0,0.00013698,2]
[361209650,1747342239872,-450.0,0.00013698,2]
[361209651,1747342239882,-450.0,0.00013698,2]
[361209652,1747342239891,-450.0,0.00013698,2]
[361209653,1747342239901,-597.28,0.00013698,2]
[361209654,1747342239910,-450.0,0.00013698,2]
[361209655,1747342239920,-450.0,0.00013698,2]
[361209656,1747342239930,-865.98,0.00013698,2]
[361209657,1747342239939,-556.89,0.00013698,2]
[361209658,1747342239949,-450.0,0.00013698,2]
[361209659,1747342239959,-450.0,0.00013698,2]
[361209660,1747342239969,-450.0,0.00013698,2]
[361209661,1747342239979,-450.0,0.00013698,2]
[361209662,1747342239989,-450.0,0.00013698,2]
[361209663,1747342239999,-746.95,0.00013698,2]
[361209664,1747342240009,-450.0,0.00013698,2]
[361209665,1747342240019,-450.0,0.00013698,2]
[361209666,1747342240029,-450.0,0.00013698,2]
[361209667,1747342240039,-450.0,0.00013698,2]
[361209668,1747342240048,-450.0,0.00013698,2]
[361209669,1747342240058,-450.0,0.00013698,2]
[361209670,1747342240067,-450.0,0.00013698,2]
[361209671,1747342240076,-1304.98,0.00013698,2]
[361209672,1747342240086,-450.0,0.00013698,2]
[361209673,1747342240095,-620.14,0.00013698,2]
[361209674,1747342240105,-1270.4,0.00013698,2]
[361209675,1747342240114,-450.0,0.00013698,2]
[361209676,1747342240123,-450.0,0.00013698,2]
[361209677,1747342240133,-450.0,0.00013698,2]
[361209678,1747342240143,-450.0,0.00013698,2]
[361209679,1747342240152,-450.0,0.00013698,2]
[361209680,1747342240162,-199.58259766,0.00013698,2]
[361209682,1747342240560,-124.87195242,0.00013561,2]
[361209742,1747342243497,-28.28259792,0.00013561,2]
[361210057,1747342246695,-2099.47440285,0.00013561,2]
[361210093,1747342777383,-5000.0,0.00013462,2]
[361210094,1747342777409,-156.29013791,0.00013598,2]
[361210095,1747342777431,-450.0,0.00013698,2]
[361210096,1747342777452,-450.0,0.00013698,2]
[361210097,1747342777473,-450.0,0.00013698,2]
[361210098,1747342777496,-450.0,0.00013698,2]
[361210099,1747342777520,-245.1171395,0.00013698,2]
[361210100,1747342777541,-579.38599196,0.00013698,2]
[361210101,1747342777562,-450.0,0.00013698,2]
[361210102,1747342777584,-400.0,0.00013698,2]
[361210103,1747342777604,-450.0,0.00013698,2]
[361210104,1747342777624,-246.95719246,0.00013698,2]
[361210105,1747342777645,-450.0,0.00013698,2]
[361210106,1747342777666,-450.0,0.00013698,2]
[361210107,1747342777686,-450.0,0.00013698,2]
[361210108,1747342777707,-450.0,0.00013698,2]
[361210109,1747342777728,-400.0,0.00013698,2]
[361210110,1747342777748,-450.0,0.00013698,2]
[361210111,1747342777771,-400.0,0.00013698,2]
[361210112,1747342777792,-450.0,0.00013698,2]
[361210113,1747342777815,-450.0,0.00013698,2]
[361210114,1747342777835,-450.0,0.00013698,2]
[361210115,1747342777857,-450.0,0.00013698,2]
[361210116,1747342777879,-450.0,0.00013698,2]
[361210117,1747342777900,-450.0,0.00013698,2]
[361210118,1747342777922,-450.0,0.00013698,2]
[361210119,1747342777943,-450.0,0.00013698,2]
[361210120,1747342777963,-450.0,0.00013698,2]
[361210121,1747342777983,-215.24953817,0.00013698,2]
[361210128,1747342958063,2504.0,0.00027397,120]
[361210129,1747342973600,-249.15449928,0.00013228,2]
[361210130,1747342979895,-183.84308559,0.00013228,2]
[361210131,1747342981843,-200.06862657,0.00013228,2]
[361210132,1747342984962,-285.90165442,0.00013228,2]
[361210134,1747343253134,-470.016495,0.00013096,2]
[361210135,1747343306574,500.0,0.00027397,120]
[361210137,1747343347085,-5000.0,0.00012965,2]
[361210138,1747343347105,-60.18708656,0.00013362,2]
[361210139,1747343355429,500.0,0.00027397,120]
[361210140,1747343361104,-4951.7832,0.00013228,14]
[361210141,1747343364517,500.0,0.00027397,120]
[361210142,1747343409196,500.0,0.00027556,120]
[361210169,1747343432444,-48.2168,0.00013228,14]
[361210171,1747343432457,-104.68251327,0.00013362,2]
[361210173,1747343432472,-652.61296533,0.0001353,2]
[361210175,1747343432485,-156.2901379,0.00013598,2]
[361210177,1747343432499,-222.7476,0.0001369,2]
[361210179,1747343432510,-500.0,0.00013697,2]
[361210181,1747343432520,-172.5262535,0.00013697,2]
[361210182,1747343432534,-72.95044269,0.00013697,2]
[361210185,1747343432548,-548.85987299,0.00013697,2]
[361210188,1747343432563,-200.94400997,0.00013697,2]
[361210189,1747343432576,-450.0,0.00013698,2]
[361210191,1747343432586,-450.0,0.00013698,2]
[361210193,1747343432598,-450.0,0.00013698,2]
[361210195,1747343432610,-450.0,0.00013698,2]